bitfinex-derivatives/quotes_ETHF0:USTF0_20240910
["timestamp","ask_amount","ask_price","bid_price","bid_amount"]
[1726008235096,0.41857,2389.0,2388.4,4.02]
[1726008235292,1.0461,2389.8,2388.4,4.02]
[1726008235293,2.69859867,2390.2,2388.8,2.09296]
[1726008235598,4.095,2390.8,2388.8,2.09296]
[1726008235599,0.4182,2391.1,2390.0,4.02]
[1726008235786,0.7614,2391.4,2390.0,4.02]
[1726008235986,0.7614,2391.4,2390.4,4.02]
[1726008236191,0.3856,2391.4,2390.7,4.02]
[1726008236393,0.39052031,2392.2,2390.7,4.02]
[1726008236394,0.098,2392.0,2390.7,4.02]
[1726008236598,4.02,2392.0,2390.8,0.098]
[1726008236795,0.41823,2390.9,2390.8,0.098]
[1726008236990,4.02,2392.0,2390.2,0.098]
[1726008236991,0.41827,2390.7,2390.2,0.098]
[1726008237190,0.41827,2390.7,2390.0,4.02]
[1726008237593,1.04538,2391.4,2390.0,4.02]
[1726008237896,4.02,2391.0,2390.1,0.211]
[1726008238090,4.02,2391.0,2389.4,26.631]
[1726008238091,4.02,2391.0,2389.4,22.4]
[1726008238286,0.41834,2390.3,2389.4,26.83848]
[1726008238491,0.41832,2390.4,2389.5,0.41847]
[1726008238691,1.0456,2390.9,2389.4,26.42]
[1726008238899,0.41832,2390.4,2389.4,26.42]
[1726008239099,0.41832,2390.4,2389.5,0.41847]
[1726008239290,1.04563,2390.8,2389.4,22.4]
[1726008239489,0.41834,2390.3,2389.4,26.83848]
[1726008239693,0.41834,2390.3,2389.5,0.41847]
[1726008240100,0.41834,2390.3,2389.4,26.83848]
[1726008240294,0.41832,2390.4,2389.4,26.42]
[1726008240509,1.04567,2390.7,2389.4,26.83848]
[1726008240700,0.373,2390.6,2389.4,4.02]
[1726008240891,0.41834,2390.3,2389.5,0.41847]
[1726008241203,0.41835,2390.2,2389.5,0.41847]
[1726008241399,0.41835,2390.2,2389.4,4.43848]
[1726008241792,0.373,2390.6,2389.4,4.02]
[1726008242103,0.41836,2390.2,2389.4,4.43849]
[1726008242999,0.41837,2390.1,2389.4,4.02]
[1726008243209,0.41838,2390.1,2389.4,4.02]
[1726008243499,0.373,2390.6,2389.4,4.02]
[1726008243808,0.41838,2390.1,2389.4,4.43848]
[1726008244008,0.41836,2390.2,2389.5,0.41847]
[1726008244502,0.41839,2390.0,2389.4,4.02]
[1726008245310,0.4184,2389.9,2389.4,4.02]
[1726008245510,4.095,2390.4,2389.0,26.83855]
[1726008245702,1.04599,2390.0,2389.0,22.61]
[1726008245904,1.04606,2389.8,2389.0,22.61]
[1726008246102,1.04606,2389.8,2388.7,4.79951]
[1726008246103,0.4185,2389.4,2388.7,4.79951]
[1726008246303,0.4185,2389.4,2388.7,4.58951]
[1726008246502,0.4185,2389.4,2388.7,4.5895]
[1726008246798,0.41851,2389.3,2388.8,22.4]
[1726008247213,0.372,2389.7,2388.8,22.4]
[1726008247511,0.41851,2389.4,2388.8,22.4]
[1726008247711,0.41851,2389.3,2388.8,22.4]
[1726008248306,0.7644,2389.7,2388.8,22.4]
[1726008248512,0.41852,2389.3,2388.8,22.4]
[1726008249415,0.7644,2389.7,2388.8,22.4]
[1726008249416,0.41853,2389.2,2388.8,22.4]
[1726008249912,1.04617,2389.6,2388.8,22.4]
[1726008250213,0.41854,2389.1,2388.8,22.4]
[1726008250407,1.04619,2389.5,2388.8,22.4]
[1726008250608,0.41855,2389.1,2388.8,22.4]
[1726008250815,1.04637,2389.1,2388.3,4.6016]
[1726008251008,4.095,2389.5,2388.2,0.3651]
[1726008251314,0.41865,2388.5,2388.3,22.4]
[1726008251516,1.04647,2388.9,2388.3,22.4]
[1726008252014,0.41866,2388.4,2388.3,22.4]
[1726008253207,0.41869,2388.3,2388.0,4.02]
[1726008253408,0.41872,2388.1,2388.0,4.02]
[1726008253608,0.41872,2388.1,2388.0,22.4]
[1726008254017,1.04666,2388.5,2388.0,22.4]
[1726008254018,0.41866,2388.4,2388.0,22.4]
[1726008254213,1.04666,2388.5,2388.0,22.4]
[1726008254719,0.41872,2388.1,2388.0,22.4]
[1726008256115,0.41871,2388.2,2388.0,22.4]
[1726008256716,0.41872,2388.1,2388.0,22.4]
[1726008259114,0.41872,2388.1,2387.5,0.78401]
[1726008259115,4.1872,2388.1,2387.5,0.78401]
[1726008259316,5.14163,2388.5,2387.5,0.3652]
[1726008259517,0.41876,2387.9,2387.6,22.4]
[1726008260921,0.41876,2387.9,2387.6,22.8188]
[1726008264724,0.41877,2387.8,2387.6,22.8188]
[1726008269325,0.41879,2387.7,2387.6,22.4]
[1726008269920,1.46577,2387.7,2387.6,22.4]
[1726008270121,1.46577,2387.7,2387.1,4.02]
[1726008270122,0.41887,2387.2,2387.1,4.02]
[1726008270326,0.41889,2387.1,2387.0,0.4189]
[1726008270623,0.4189,2387.1,2387.0,22.4]
[1726008272732,0.4189,2387.1,2387.0,22.81891]
[1726008273320,0.4189,2387.1,2387.0,22.4]
[1726008274928,1.04713,2387.4,2387.2,0.41886]
[1726008274929,0.41885,2387.4,2387.2,0.41886]
[1726008275128,0.41885,2387.4,2387.2,8.62766]
[1726008275525,4.095,2387.9,2387.2,4.43886]
[1726008275719,0.41886,2387.3,2387.2,4.02]
[1726008275927,0.41886,2387.3,2387.2,4.43887]
[1726008276125,0.41886,2387.3,2387.2,8.62767]
[1726008277320,0.41886,2387.3,2387.2,8.2088]
[1726008277718,0.41886,2387.3,2387.2,4.1888]
[1726008277931,0.41886,2387.3,2387.1,0.41888]
[1726008278134,1.04702,2387.6,2387.2,0.41886]
[1726008279133,1.04697,2387.8,2387.0,22.4]
[1726008279336,0.41883,2387.5,2387.3,0.41885]
[1726008279834,0.41884,2387.4,2387.3,0.41885]
[1726008280529,0.41884,2387.4,2387.2,4.02]
[1726008280530,1.04702,2387.6,2387.2,4.02]
[1726008280736,1.04702,2387.6,2387.2,0.41887]
[1726008281127,0.41886,2387.4,2387.2,0.41887]
[1726008281339,0.41886,2387.3,2387.1,0.78488]
[1726008281635,0.41886,2387.3,2387.2,0.41887]
[1726008284531,0.41886,2387.3,2387.1,3.27]
[1726008285239,0.41886,2387.3,2387.2,0.41887]
[1726008285935,0.41887,2387.2,2387.1,3.68888]
[1726008286239,1.04698,2387.7,2387.1,3.68888]
[1726008286240,0.41887,2387.3,2387.2,0.41887]
[1726008286444,0.41887,2387.2,2387.1,3.27]
[1726008286737,0.41889,2387.1,2387.0,22.4]
[1726008286930,0.41889,2387.1,2387.0,22.81891]
[1726008287339,0.41889,2387.1,2387.0,22.4]
[1726008287643,0.41889,2387.1,2387.0,22.81891]
[1726008288139,0.41889,2387.1,2387.0,22.4]
[1726008289740,1.46613,2387.1,2387.0,22.4]
[1726008291440,0.41896,2386.7,2386.6,11.94502585]
[1726008291645,0.41896,2386.8,2386.6,11.94502585]
[1726008291840,1.04722,2387.2,2386.6,11.94502585]
[1726008291841,0.3756,2387.1,2386.7,0.41896]
[1726008292036,0.3756,2387.1,2386.6,11.94502585]
[1726008292037,0.41894,2386.9,2386.8,22.4]
[1726008296838,1.46627,2386.9,2386.8,22.4]
[1726008297038,1.83997,2386.9,2386.8,22.4]
[1726008297436,0.79264,2386.9,2386.4,1.08805248]
[1726008297641,0.41903,2386.4,2386.2,0.41904]
[1726008297944,0.41901,2386.5,2386.3,22.81903]
[1726008300042,0.41901,2386.5,2386.3,26.08903]
[1726008300656,1.43719,2386.8,2386.3,26.08903]
[1726008300657,0.41902,2386.4,2386.3,26.08903]
[1726008300852,0.41902,2386.4,2386.3,25.67]
[1726008301650,0.41901,2386.5,2386.3,26.08903]
[1726008301847,1.04741,2386.7,2386.3,25.67]
[1726008302044,0.41901,2386.5,2386.3,26.08903]
[1726008302955,0.41901,2386.5,2386.3,26.08902]
[1726008303250,0.3898,2386.8,2386.3,25.67]
[1726008303448,4.095,2387.2,2386.7,3.27]
[1726008303754,4.095,2387.2,2386.4,7.4604]
[1726008303755,1.46606,2387.2,2387.1,3.27]
[1726008303955,0.41892,2387.0,2386.9,3.27]
[1726008304655,0.41895,2386.8,2386.7,3.27]
[1726008304955,0.41897,2386.7,2386.5,3.68899]
[1726008305146,0.41895,2386.8,2386.5,3.27]
[1726008305350,0.41895,2386.8,2386.7,3.27]
[1726008306048,0.41895,2386.8,2386.7,3.68896]
[1726008306358,0.41895,2386.8,2386.7,3.27]
[1726008307855,0.41895,2386.8,2386.7,3.68896]
[1726008313063,0.41892,2387.0,2386.9,0.41892]
[1726008313251,4.095,2387.2,2386.8,4.1896]
[1726008313456,4.095,2387.2,2386.7,3.27]
[1726008313457,0.41892,2387.0,2386.9,0.41892]
[1726008313656,0.41891,2387.0,2386.9,0.41892]
[1726008313959,0.41891,2387.0,2386.9,4.60852]
[1726008316956,0.41891,2387.0,2386.9,4.1896]
[1726008317261,0.41895,2386.8,2386.7,3.27]
[1726008317764,0.41895,2386.8,2386.7,7.4596]
[1726008318961,0.41895,2386.8,2386.7,3.27]
[1726008320455,0.41895,2386.8,2386.7,7.87856]
[1726008321163,0.41891,2387.1,2386.7,7.4596]
[1726008321369,0.41891,2387.1,2387.0,3.27]
[1726008321664,0.41889,2387.2,2387.0,3.6889]
[1726008321867,0.41889,2387.1,2387.0,3.27]
[1726008323162,0.3777,2387.4,2387.0,13.4596]
[1726008323367,0.3777,2387.4,2387.2,3.68886]
[1726008323571,0.3777,2387.4,2387.2,3.27]
[1726008323759,0.3777,2387.4,2387.3,0.41886]
[1726008324162,0.3777,2387.4,2387.2,3.68886]
[1726008324667,0.3777,2387.4,2387.3,22.4]
[1726008325066,0.79654,2387.4,2387.3,22.4]
[1726008325463,0.3777,2387.4,2387.3,22.4]
[1726008326070,0.3777,2387.4,2387.3,22.81886]
[1726008326465,0.79431,2387.6,2387.3,22.81886]
[1726008327368,0.41882,2387.5,2387.3,22.81886]
[1726008328177,0.41882,2387.5,2387.3,22.4]
[1726008328470,0.41882,2387.5,2387.3,22.81886]
[1726008329278,0.41882,2387.5,2387.3,22.4]
[1726008329779,0.41882,2387.5,2387.3,22.81886]
[1726008331566,0.41884,2387.4,2387.3,22.4]
[1726008331766,0.41884,2387.4,2387.2,3.27]
[1726008331963,0.81016,2387.3,2387.2,3.27]
[1726008332379,0.81016,2387.3,2387.2,29.8588]
[1726008332567,0.81016,2387.3,2387.2,25.67]
[1726008332768,0.81016,2387.3,2387.2,29.8588]
[1726008333876,0.3913,2387.3,2387.0,3.27]
[1726008334277,0.41889,2387.1,2387.0,3.27]
[1726008334665,0.80369,2387.1,2387.0,3.27]
[1726008334870,0.80369,2387.1,2387.0,25.67]
[1726008335785,0.80369,2387.1,2387.0,22.4]
[1726008341278,0.80369,2387.1,2387.0,25.67]
[1726008341279,0.3848,2387.1,2387.0,25.67]
[1726008341481,0.80369,2387.1,2387.0,25.67]
[1726008348288,0.80369,2387.1,2387.0,26.20670485]
[1726008348791,0.80369,2387.1,2387.0,25.67]
[1726008348983,0.3848,2387.1,2387.0,26.08891]
[1726008349186,0.3848,2387.1,2387.0,26.2067435]
[1726008349187,0.80369,2387.1,2387.0,26.2067435]
[1726008352078,0.80369,2387.1,2387.0,22.4]
[1726008352284,1.85093,2387.1,2387.0,22.93898693]
[1726008352479,1.85093,2387.1,2387.0,22.4]
[1726008353286,0.41892,2387.0,2386.8,3.27]
[1726008353487,0.41892,2387.0,2386.9,0.53903602]
[1726008353675,0.41892,2387.0,2386.9,22.93903602]
[1726008354587,0.3848,2387.1,2386.9,22.93903602]
[1726008354788,0.8037,2387.1,2387.0,0.53903602]
[1726008355175,0.41891,2387.0,2386.9,22.4]
[1726008355379,0.41891,2387.0,2386.9,22.93900791]
[1726008355594,0.41891,2387.0,2386.9,22.4]
[1726008355784,0.41891,2387.0,2386.9,22.93903626]
[1726008356187,0.41891,2387.0,2386.9,24.44903626]
[1726008357191,1.46619,2387.0,2386.9,0.53903626]
[1726008357393,1.46637,2386.7,2386.6,1.08805248]
[1726008357592,1.46637,2386.7,2386.6,0.5414579]
[1726008357783,1.0475,2386.5,2386.2,1.08805248]
[1726008357982,0.7596,2386.4,2386.1,2.59805248]
[1726008358180,0.41905,2386.2,2386.1,1.51]
[1726008358488,0.41905,2386.2,2386.1,23.91]
[1726008358683,0.7596,2386.4,2386.1,24.45185748]
[1726008358984,0.41905,2386.2,2386.1,23.91]
[1726008359185,0.41905,2386.2,2386.1,22.9418435]
[1726008359486,0.41905,2386.2,2386.1,1.51]
[1726008359883,0.7596,2386.4,2385.9,22.4]
[1726008359884,0.41907,2386.1,2385.9,22.4]
[1726008360084,0.3661,2386.0,2385.9,22.4]
[1726008360283,0.78519,2386.0,2385.9,22.94191394]
[1726008360498,0.78519,2386.0,2385.9,0.54195076]
[1726008360684,0.3661,2386.0,2385.8,3.68912]
[1726008360886,0.3661,2386.0,2385.9,0.96095059]
[1726008361281,0.3661,2386.0,2385.9,0.96088435]
[1726008362386,4.095,2386.8,2386.0,1.04772]
[1726008362690,2.69638983,2387.0,2386.0,1.04772]
[1726008362691,4.4699,2387.0,2386.8,0.41893]
[1726008362896,0.3749,2387.0,2386.9,25.67]
[1726008363088,0.79381,2387.0,2386.9,22.4]
[1726008363492,4.98341,2387.0,2386.9,22.4]
[1726008367494,4.98341,2387.0,2386.7,3.27]
[1726008367495,4.5645,2387.0,2386.7,3.27]
[1726008367699,0.41893,2386.9,2386.7,3.27]
[1726008367998,0.41893,2386.9,2386.8,22.4]
[1726008369592,0.41893,2386.9,2386.5,3.27]
[1726008369593,4.1896,2386.9,2386.5,3.27]
[1726008369794,0.41898,2386.6,2386.5,3.27]
[1726008369989,0.3939,2386.8,2386.3,3.68902]
[1726008370196,0.3946,2386.5,2386.4,22.4]
[1726008370392,0.3946,2386.5,2386.0,1.08678918]
[1726008370699,0.41907,2386.1,2385.7,4.44431144]
[1726008370896,0.7885,2386.0,2385.9,22.4]
[1726008372406,1.20759,2386.0,2385.9,22.4]
[1726008372588,0.7885,2386.0,2385.9,22.4]
[1726008373000,1.20759,2386.0,2385.9,22.4]
[1726008374091,0.7885,2386.0,2385.9,22.4]
[1726008374700,1.20759,2386.0,2385.9,22.4]
[1726008376398,6.02745,2386.0,2385.4,3.6359]
[1726008376591,0.3823,2385.9,2385.4,3.6359]
[1726008376796,0.80142,2385.9,2385.5,22.81916]
[1726008376996,0.7885,2386.0,2385.7,0.41913]
[1726008377203,1.20759,2386.0,2385.7,0.41913]
[1726008377404,1.20759,2386.0,2385.7,0.41912]
[1726008377600,0.4191,2385.9,2385.6,3.653]
[1726008377900,0.4191,2385.9,2385.6,4.07215]
[1726008378797,0.7885,2386.0,2385.6,4.07215]
[1726008379005,0.41912,2385.8,2385.6,3.27]
[1726008379194,0.7885,2386.0,2385.6,3.27]
[1726008379395,0.41913,2385.8,2385.5,22.81917]
[1726008380602,1.1674,2386.0,2385.5,22.4]
[1726008380603,0.41914,2385.7,2385.5,22.4]
[1726008380803,0.41913,2385.8,2385.5,22.81917]
[1726008381009,1.1674,2386.0,2385.6,0.41915]
[1726008381299,0.41913,2385.8,2385.5,22.81917]
[1726008381703,0.41913,2385.8,2385.6,0.41915]
[1726008381895,0.41913,2385.8,2385.5,22.81916]
[1726008382097,0.41913,2385.8,2385.6,0.41916]
[1726008382400,0.41913,2385.8,2385.5,22.81917]
[1726008382593,1.04777,2385.9,2385.4,4.05508]
[1726008382798,0.41916,2385.6,2385.4,4.05508]
[1726008383398,0.41915,2385.7,2385.4,4.05508]
[1726008383594,0.41916,2385.6,2385.4,4.05508]
[1726008383799,0.41916,2385.6,2385.4,0.41919]
[1726008384201,0.41916,2385.6,2385.3,0.4192]
[1726008384399,1.04777,2385.9,2385.2,3.27]
[1726008384603,0.41922,2385.3,2385.0,3.27]
[1726008384908,0.41919,2385.4,2385.2,3.68922]
[1726008385100,0.81209,2385.5,2385.2,3.68922]
[1726008385300,0.3929,2385.5,2385.4,3.68919]
[1726008385606,0.3929,2385.5,2385.4,3.27]
[1726008385802,0.3929,2385.5,2385.4,3.68919]
[1726008385998,0.3929,2385.5,2385.4,3.27]
[1726008386203,0.81207,2385.5,2385.4,3.27]
[1726008388101,0.3929,2385.5,2385.4,3.27]
[1726008388500,0.81207,2385.5,2385.4,3.27]
[1726008389209,0.81207,2385.5,2385.3,0.4192]
[1726008389401,0.81207,2385.5,2385.4,22.4]
[1726008390797,0.3929,2385.5,2385.4,22.4]
[1726008391015,0.3929,2385.5,2385.4,22.81919]
[1726008391902,0.3929,2385.5,2385.4,22.4]
[1726008392706,0.81207,2385.5,2385.4,22.4]
[1726008397214,0.3789,2386.0,2385.4,22.4]
[1726008397414,0.78601,2385.9,2385.7,0.41913]
[1726008397616,0.78601,2385.9,2385.4,25.67]
[1726008397617,0.78601,2385.9,2385.6,0.41916]
[1726008397914,0.41914,2385.8,2385.5,0.57067]
[1726008398505,0.41914,2385.7,2385.4,26.08918]
[1726008398913,0.41914,2385.7,2385.4,22.81918]
[1726008399406,0.41914,2385.7,2385.5,0.41917]
[1726008401317,0.3867,2385.8,2385.4,22.81918]
[1726008402013,0.41915,2385.7,2385.4,22.81918]
[1726008402406,0.41915,2385.7,2385.5,0.41917]
[1726008402809,0.3867,2385.8,2385.5,0.41917]
[1726008403104,0.80583,2385.8,2385.5,0.41917]
[1726008403310,0.41913,2385.8,2385.4,22.4]
[1726008403510,0.41914,2385.7,2385.5,0.41916]
[1726008404414,0.41914,2385.7,2385.4,22.81918]
[1726008404610,0.41914,2385.7,2385.5,0.41917]
[1726008405319,0.41916,2385.6,2385.4,22.81918]
[1726008405631,0.3949,2385.6,2385.5,0.41917]
[1726008406514,0.81406,2385.6,2385.4,22.81918]
[1726008407918,0.3949,2385.6,2385.5,0.41917]
[1726008409913,0.3949,2385.6,2385.4,22.81918]
[1726008410127,0.81406,2385.6,2385.4,22.81918]
[1726008411319,0.81406,2385.6,2385.5,0.41917]
[1726008411320,0.3949,2385.6,2385.5,0.41917]
[1726008413325,0.3949,2385.6,2385.5,0.96089264]
[1726008414126,0.41913,2385.8,2385.5,0.54172264]
[1726008414428,0.41914,2385.7,2385.6,0.54172264]
[1726008415127,0.41913,2385.8,2385.6,0.54172264]
[1726008415330,0.41913,2385.8,2385.7,1.40833452]
[1726008415727,4.61033,2385.8,2385.7,0.54172264]
[1726008416124,5.65814,2385.8,2385.7,0.54172264]
[1726008416422,0.41917,2385.5,2385.4,23.48951168]
[1726008416630,1.46711,2385.5,2385.4,24.89802965]
[1726008416832,0.41917,2385.5,2385.4,1.40851797]
[1726008417215,0.41917,2385.5,2385.4,0.54173768]
[1726008417621,5.65911,2385.5,2385.4,0.54173768]
[1726008418126,0.41919,2385.4,2385.3,23.48951168]
[1726008418516,0.41919,2385.4,2385.3,24.88252091]
[1726008420920,0.41919,2385.4,2385.3,26.24570762]
[1726008421231,0.41919,2385.4,2385.3,24.88237695]
[1726008423322,0.41919,2385.4,2385.3,24.02522909]
[1726008423523,0.41919,2385.4,2385.3,24.88230825]
[1726008423723,0.41919,2385.4,2385.3,24.8822989]
[1726008425530,0.41919,2385.4,2385.3,26.24535102]
[1726008425832,0.41919,2385.4,2385.3,26.78791806]
[1726008426026,0.41919,2385.4,2385.3,24.88238011]
[1726008427027,0.41919,2385.4,2385.3,26.24584819]
[1726008427329,0.41919,2385.4,2385.3,24.88238011]
[1726008427528,0.41919,2385.4,2385.3,23.48959289]
[1726008427732,0.41919,2385.4,2385.3,24.88265599]
[1726008428739,0.41919,2385.4,2385.3,26.24624281]
[1726008428935,0.41919,2385.4,2385.3,24.88265599]
[1726008429330,0.41919,2385.4,2385.3,26.24527721]
[1726008430128,0.41919,2385.4,2385.3,26.24532752]
[1726008430333,0.41919,2385.4,2385.3,26.24530651]
[1726008430836,0.41919,2385.4,2385.3,26.24530726]
[1726008431025,0.41919,2385.4,2385.3,23.48959289]
[1726008431338,0.41919,2385.4,2385.3,24.88908859]
[1726008434438,0.41919,2385.4,2385.3,23.48959289]
[1726008434733,0.41919,2385.4,2385.3,24.90585667]
[1726008435540,0.4004,2385.5,2385.3,24.90585667]
[1726008435739,0.81957,2385.5,2385.4,2.50577717]
[1726008435939,0.81957,2385.5,2385.4,1.08959289]
[1726008436141,0.81957,2385.5,2385.4,2.50573386]
[1726008436341,0.81957,2385.5,2385.4,24.03426249]
[1726008436545,0.81957,2385.5,2385.4,24.90571857]
[1726008437341,0.81957,2385.5,2385.4,24.9057286]
[1726008437741,0.81957,2385.5,2385.4,22.94466372]
[1726008437939,0.81957,2385.5,2385.4,24.90572201]
[1726008438742,0.4004,2385.5,2385.4,25.32491201]
[1726008438941,2.69638983,2385.9,2385.4,29.09772201]
[1726008439135,0.41914,2385.7,2385.5,4.28494865]
[1726008439334,0.41914,2385.7,2385.6,0.54466372]
[1726008441436,0.41914,2385.7,2385.5,1.08976282]
[1726008441742,0.41914,2385.7,2385.6,0.54455802]
[1726008442138,0.41914,2385.7,2385.6,22.94455802]
[1726008444842,0.41914,2385.7,2385.6,22.4]
[1726008445149,0.41914,2385.7,2385.6,22.94446972]
[1726008448340,0.41914,2385.7,2385.6,23.48976282]
[1726008448542,0.41914,2385.7,2385.6,23.81564355]
[1726008448847,0.41914,2385.7,2385.6,22.94447829]
[1726008450043,0.7755,2385.9,2385.7,0.41913]
[1726008450243,1.1946,2385.9,2385.8,0.54446847]
[1726008451839,1.1946,2385.9,2385.8,0.54444892]
[1726008452139,1.1946,2385.9,2385.8,1.08889827]
[1726008452557,1.1946,2385.9,2385.8,0.54444892]
[1726008456052,1.1946,2385.9,2385.8,1.08888367]
[1726008456444,0.41913,2385.8,2385.6,24.28761282]
[1726008456645,0.41913,2385.8,2385.7,0.54439823]
[1726008458448,0.41913,2385.8,2385.7,0.5444056]
[1726008459144,1.19461,2385.9,2385.7,0.9635456]
[1726008459348,2.69638983,2386.2,2385.8,0.5444056]
[1726008459651,0.41908,2386.1,2385.9,0.5444056]
[1726008459851,0.41908,2386.1,2386.0,0.5444056]
[1726008460050,0.41908,2386.1,2386.0,0.54422491]
[1726008460855,0.41908,2386.1,2385.9,0.3629]
[1726008461043,0.41908,2386.1,2386.0,0.54423463]
[1726008461651,1.18825,2386.2,2386.0,0.96331463]
[1726008461849,1.18825,2386.2,2386.0,0.41908]
[1726008462554,1.18825,2386.2,2385.9,1.87175282]
[1726008462744,0.41907,2386.1,2386.0,0.54416446]
[1726008462939,0.41909,2386.0,2385.8,1.87168282]
[1726008463144,0.41909,2386.0,2385.9,0.54420183]
[1726008463751,0.41909,2386.0,2385.9,4.73540183]
[1726008464148,0.41909,2386.0,2385.9,0.54420183]
[1726008464552,0.41909,2386.0,2385.9,4.73540183]
[1726008465357,0.41909,2386.0,2385.9,4.73543778]
[1726008465750,0.41909,2386.0,2385.9,0.54423778]
[1726008468449,0.41909,2386.0,2385.8,0.41912]
[1726008470456,1.81685,2386.2,2385.9,0.54408066]
[1726008470664,1.81685,2386.2,2385.8,0.41912]
[1726008470665,0.41909,2386.0,2385.8,0.41912]
[1726008470860,0.41909,2386.0,2385.9,0.54408986]
[1726008471261,0.41909,2386.0,2385.8,0.41912]
[1726008471661,0.41909,2386.0,2385.9,0.54407607]
[1726008476361,1.81685,2386.2,2385.9,0.54407607]
[1726008476560,0.41909,2386.0,2385.8,0.41912]
[1726008476770,0.41909,2386.0,2385.9,0.5441169]
[1726008478065,0.41909,2386.0,2385.6,1.08976282]
[1726008478066,0.41914,2385.7,2385.6,1.08976282]
[1726008478265,0.41914,2385.7,2385.6,2.50466264]
[1726008478467,0.41914,2385.7,2385.6,1.63395506]
[1726008478672,0.41914,2385.7,2385.6,1.63398826]
[1726008479270,0.41914,2385.7,2385.6,0.54422544]
[1726008479468,0.41914,2385.7,2385.4,1.08976282]
[1726008479469,0.41917,2385.6,2385.4,1.08976282]
[1726008479664,0.79127,2385.5,2385.4,1.08976282]
[1726008479969,0.79127,2385.5,2385.4,1.63415989]
[1726008480167,7.54121,2385.5,2385.4,0.54439707]
[1726008480471,0.41924,2385.1,2384.9,1.08976282]
[1726008480685,0.7802,2385.0,2384.9,1.08976282]
[1726008480970,0.7802,2385.0,2384.9,0.5447847]
[1726008480971,2.70946,2385.0,2384.9,0.5447847]
[1726008481171,3.07436,2385.0,2384.9,0.5447847]
[1726008481368,0.41929,2384.9,2384.6,1.08976282]
[1726008481565,1.92929,2384.9,2384.7,0.54496047]
[1726008481871,1.92929,2384.9,2384.5,1.88441282]
[1726008482067,1.92929,2384.9,2384.6,0.54743768]
[1726008482265,1.92929,2384.9,2384.5,1.88441282]
[1726008482574,1.51,2384.8,2384.6,0.54743123]
[1726008482766,1.51,2384.8,2384.5,0.3753]
[1726008482967,1.92929,2384.9,2384.6,0.54746885]
[1726008483164,1.51,2384.9,2384.5,1.46506282]
[1726008483363,1.56437,2385.0,2384.6,0.54742933]
[1726008483668,1.56437,2385.0,2384.5,2.30464]
[1726008483970,1.1451,2385.0,2384.6,22.81933]
[1726008484169,1.1451,2385.0,2384.7,1.51]
[1726008484574,1.56437,2385.0,2384.7,1.51]
[1726008485866,1.56437,2385.0,2384.6,22.4]
[1726008485867,0.41928,2384.9,2384.6,22.4]
[1726008486270,0.4193,2384.8,2384.5,0.3753]
[1726008486571,0.4193,2384.8,2384.4,0.41936]
[1726008488171,0.4193,2384.8,2384.5,0.41935]
[1726008489871,1.92929,2384.9,2384.5,1.92935]
[1726008490478,0.41929,2384.9,2384.5,1.92935]
[1726008490776,0.4193,2384.8,2384.5,1.92935]
[1726008492282,0.4193,2384.8,2384.6,22.4]
[1726008492677,0.4193,2384.8,2384.6,22.81933]
[1726008496382,1.51,2384.9,2384.6,22.4]
[1726008496583,1.92931,2384.7,2384.6,22.4]
[1726008496787,2.9776,2384.7,2384.6,22.4]
[1726008497493,2.9776,2384.7,2384.2,9.10295994]
[1726008497494,0.41937,2384.4,2384.2,9.10295994]
[1726008497884,1.51,2384.5,2384.2,9.10294994]
[1726008497885,1.92935,2384.5,2384.2,9.10294994]
[1726008498187,1.92935,2384.5,2384.3,22.4]
[1726008499088,0.41937,2384.4,2384.3,22.4]
[1726008500681,0.41936,2384.5,2384.3,22.4]
[1726008503201,0.41936,2384.5,2384.2,9.10295994]
[1726008504293,1.12,2384.6,2384.1,1.92941]
[1726008504493,1.12,2384.6,2383.9,0.75775042]
[1726008504494,0.4194,2384.3,2384.0,0.41943]
[1726008504795,0.3859,2384.2,2384.0,0.41943]
[1726008505108,0.7513,2384.2,2384.0,0.41943]
[1726008505597,0.41943,2384.1,2383.8,0.75]
[1726008505794,0.41943,2384.1,2383.8,1.16946]
[1726008506000,0.41943,2384.1,2383.9,0.41945]
[1726008506297,0.41943,2384.1,2383.8,1.16946]
[1726008506503,0.41943,2384.1,2383.9,0.41945]
[1726008506699,0.41943,2384.1,2383.8,1.16946]
[1726008507103,0.41944,2384.0,2383.8,1.16946]
[1726008508000,0.41942,2384.1,2383.9,0.41945]
[1726008508188,2.6389,2384.2,2383.8,0.75]
[1726008508189,3.05832,2384.2,2383.8,0.75]
[1726008508390,2.6389,2384.2,2383.8,0.75]
[1726008508591,0.41943,2384.1,2383.9,0.41944]
[1726008509195,0.41943,2384.1,2384.0,22.4]
[1726008511795,4.61383,2384.1,2384.0,22.4]
[1726008512601,0.41943,2384.1,2384.0,22.4]
[1726008513607,0.41945,2384.0,2383.8,0.41947]
[1726008514102,0.41945,2384.0,2383.9,22.4]
[1726008516695,1.1289,2384.2,2383.9,22.4]
[1726008516896,0.41942,2384.1,2383.9,22.81944]
[1726008517097,0.41942,2384.1,2383.9,23.19704]
[1726008518512,1.54831,2384.2,2384.0,0.41944]
[1726008518705,0.41943,2384.1,2383.9,23.19704]
[1726008519720,1.1289,2384.2,2383.9,22.7776]
[1726008520121,1.1289,2384.2,2383.9,23.19705]